Cogmind - Beta 10.1 --- EXPLORER MODE // 2020.09.27 @ 11:18:42 Player: 1Q84 Result: Self-destructed Performance ------------- Evolutions (2) 1000 Regions Visited (6) 1200 Robots Destroyed (17) 85 Value Destroyed (810) 810 Prototype IDs (25) 500 Alien Tech Used (0) 0 Bonus (1140) 1140 TOTAL SCORE: 4735 Bonus ------- Follower Combat Kills 140 Entered Garrisons 200 Used RIF Installer 500 Aligned with FarCom 300 Cogmind --------- Core Integrity 474/550 Matter 234/300 Energy 160/160 System Corruption 0% Temperature Cool (0) Movement Walking (90) Location -8/Garrison Parts ------- > --- POWER (1) -------- Light Nuclear Core > --- PROPULSION (2) --- Potential Leg Potential Leg > --- UTILITY (7) ------ Large Storage Unit High-capacity Storage Unit Core Shielding Relay Coupler [Grunt] (30) > --- WEAPON (2) ------- Heavy Assault Rifle Datajack > --- INVENTORY (18) --- Aluminum Leg Aluminum Leg Small Storage Unit Medium Storage Unit Medium Storage Unit High-capacity Storage Unit Relay Coupler [Brawler] (41) Relay Coupler [Sentry] (33) Assault Rifle Assault Rifle Rocket Launcher Katana Makeshift Spear Heavy Explosive Trap Peak State ------------ > --- POWER ------------ Light Nuclear Core > --- PROPULSION ------- Potential Leg Potential Leg > --- UTILITY ---------- Large Storage Unit High-capacity Storage Unit Core Shielding Light Armor Plating Light Armor Plating Relay Coupler [Grunt] Relay Coupler [Grunt] > --- WEAPON ----------- Particle Gun Datajack > --- INVENTORY -------- Aluminum Leg Aluminum Leg Small Storage Unit Medium Storage Unit Medium Storage Unit High-capacity Storage Unit Relay Coupler [Brawler] Relay Coupler [Sentry] Assault Rifle Assault Rifle Heavy Assault Rifle Rocket Launcher Katana Makeshift Spear Heavy Explosive Trap Heavy Explosive Trap [Rating: 40] Favorites ----------- Power Light Nuclear Core Engine Ion Engine Power Core Light Nuclear Core Propulsion Potential Leg Leg Potential Leg Utility Medium Storage Unit Device Terrain Scanner Storage Medium Storage Unit Hackware Relay Coupler [Grunt] Protection Light Armor Plating Weapon Assault Rifle Energy Gun Small Laser Ballistic Gun Assault Rifle Slashing Weapon Katana Special Melee Weapon Datajack Build | -11 -10 -10 -10 -9 -8 -8 ------- Run | Scr Mat Min Exi Min Mat Gar Slots Evolved 5 | . 1 . . . 4 . Power . | . . . . . . . Propulsion . | . . . . . . . Utility 5 | . 1 . . . 4 . Weapon . | . . . . . . . Parts Attached 33 | 7 6 2 6 2 2 8 Power 5 | 2 . 1 . . . 2 Engine 3 | 2 . . . . . 1 Core 2 | . . 1 . . . 1 Reactor . | . . . . . . . Propulsion 6 | 2 2 . 2 . . . Treads . | . . . . . . . Leg 6 | 2 2 . 2 . . . Wheel . | . . . . . . . Hover . | . . . . . . . Flight . | . . . . . . . Utility 12 | 1 2 . 4 1 . 4 Device 1 | . . . 1 . . . Storage 6 | 1 2 . 3 . . . Processor . | . . . . . . . Hackware 2 | . . . . . . 2 Protection 3 | . . . . 1 . 2 Artifact . | . . . . . . . Weapon 10 | 2 2 1 . 1 2 2 Energy Gun 3 | 1 1 . . . 1 . Energy Cannon . | . . . . . . . Ballistic Gun 5 | 1 1 1 . 1 . 1 Ballistic Cannon . | . . . . . . . Launcher . | . . . . . . . Special Weapon . | . . . . . . . Impact Weapon . | . . . . . . . Slashing Weapon 1 | . . . . . 1 . Piercing Weapon . | . . . . . . . Special Melee Weapon 1 | . . . . . . 1 Unidentified Prototypes . | . . . . . . . Parts Lost 4 | . . . . 1 . 3 Power 1 | . . . . 1 . . Propulsion . | . . . . . . . Utility 2 | . . . . . . 2 Weapon 1 | . . . . . . 1 Highest Loss Streak 1 | . . . . 1 . 1 Average Slot Usage (%) 89 | . 74 93 100 97 58 85 Engine 1 | . 8 . . . . 1 Core 7 | . . 7 12 9 . 6 Leg 22 | . 24 25 25 25 16 16 Device 2 | . . . 2 9 . . Storage 25 | . 19 37 34 25 16 16 Hackware 1 | . . . . . . 5 Protection 5 | . . . . 2 8 21 Energy Gun 2 | . 8 . . . 1 4 Ballistic Gun 17 | . 12 22 25 25 11 6 Special Melee Weapon 1 | . . . . . . 5 Naked Turns . | . . . . . . . Heaviest Build 66 | 16 22 29 65 58 55 66 Greatest Support 60 | 20 20 20 60 60 60 60 Greatest Overweight (x) 4 | 4 1 1 1 . . 1 Average Overweight (x) . | . . 1 . . . 1 Largest Inventory Capacity 26 | 8 14 14 26 18 18 18 Average Capacity 15 | 7 9 14 15 18 18 18 Most Carried 18 | 1 7 10 14 18 16 18 Average Carried 11 | . 3 8 11 15 16 14 Final Capacity 18 | 8 14 14 18 18 18 18 Final Carried 16 | 1 7 10 14 16 16 14 Class Distribution -------------------- 75% | Hacker-Mutant 21% | Hacker-Skirmisher 3% | Bothacker-Mutant Dominant Class ---------------- Hacker-Mutant | -10/Materials Hacker-Mutant | -10/Mines Hacker-Mutant | -10/Exiles Hacker-Skirmisher | -9/Mines Hacker-Mutant | -8/Materials Hacker-Mutant | -8/Garrison Resources | -11 -10 -10 -10 -9 -8 -8 ----------- Run | Scr Mat Min Exi Min Mat Gar Matter Collected 695 | 201 . 34 . 339 33 88 Remotely . | . . . . . . . Salvage Created 587 | . . 96 . 244 47 200 Parts 32 | . . 4 . 16 4 8 Haulers Intercepted . | . . . . . . . Recyclers Shooed . | . . . . . . . Parts Field Recycled . | . . . . . . . Retrieved Matter . | . . . . . . . Parts Self-Destructed . | . . . . . . . Prevented . | . . . . . . . Kills | -11 -10 -10 -10 -9 -8 -8 ------- Run | Scr Mat Min Exi Min Mat Gar Combat Hostiles Destroyed 17 | . . 2 . 8 1 6 Guns 17 | . . 2 . 8 1 6 Classes Destroyed 4 | . . 1 . 2 1 . Swarmer 4 | . . . . 3 . 1 Grunt 10 | . . 2 . 3 . 5 Duelist 2 | . . . . 2 . . Hunter 1 | . . . . . 1 . Best Kill Streak 4 | . . 2 . 3 1 4 Combat Bots Only 4 | . . 2 . 3 1 4 Max Kills in Single Turn 1 | . . 1 . 1 1 1 Gunslinging . | . . . . . . . Exploded . | . . . . . . . Melee . | . . . . . . . Uniques/NPCs Destroyed . | . . . . . . . Combat | -11 -10 -10 -10 -9 -8 -8 -------- Run | Scr Mat Min Exi Min Mat Gar Damage Taken 770 | . . 23 . 126 70 551 Core 89 | . . 8 . 5 12 64 Absorbed by Shields 26 | . . . . . . 26 Core Remaining (%) 97 | 100 . . . 94 . . Volleys Fired 61 | . . 4 . 21 4 32 Largest 2 | . . 2 . 2 2 2 Hottest 88 | . . 40 . 40 88 88 Shots Fired 96 | . . 8 . 42 8 38 Gun 96 | . . 8 . 42 8 38 Cannon . | . . . . . . . Launcher . | . . . . . . . Special . | . . . . . . . Kinetic 82 | . . 8 . 42 4 28 Thermal 14 | . . . . . 4 10 Explosive . | . . . . . . . Electromagnetic . | . . . . . . . Robot Hit Streak 41 | . . 4 . 15 17 41 Robot Miss Streak 1 | . . 1 . 1 . 1 Penetration Max . | . . . . . . . Secondary Targets 4 | . . 1 . 2 . 1 Max Gunslinging Chain 1 | . . 1 . 1 . 1 Shots Hit Robots 98 | . . 6 . 35 8 49 Core Hits 29 | . . 4 . 12 3 10 Critical Hits 2 | . . . . . . 2 Critical Kills 1 | . . . . . . 1 Critical Parts Destroyed 1 | . . . . . . 1 Melee Attacks 20 | . . . . . 2 18 Impact . | . . . . . . . Slashing 2 | . . . . . 2 . Piercing . | . . . . . . . Sneak Attacks 5 | . . . . . . 5 Combat Hostiles 1 | . . . . . . 1 Follow-up Attacks . | . . . . . . . Damage Inflicted 1048 | . . 88 . 415 103 442 Guns 1048 | . . 88 . 415 103 442 Cannons . | . . . . . . . Explosions . | . . . . . . . Melee . | . . . . . . . Ramming . | . . . . . . . Kinetic 882 | . . 88 . 415 42 337 Thermal 166 | . . . . . 61 105 Explosive . | . . . . . . . Electromagnetic . | . . . . . . . Impact . | . . . . . . . Slashing . | . . . . . . . Piercing . | . . . . . . . Highest Corruption . | . . . . . . . Average Corruption . | . . . . . . . Corruption Purged . | . . . . . . . Overload Shots . | . . . . . . . Overflow Damage . | . . . . . . . Projectiles . | . . . . . . . Explosions . | . . . . . . . Melee . | . . . . . . . Knockbacks . | . . . . . . . Impact . | . . . . . . . Kinetic . | . . . . . . . Secondary . | . . . . . . . Self-Inflicted Damage . | . . . . . . . Shots . | . . . . . . . Rammed . | . . . . . . . Targets Rammed . | . . . . . . . Kicked . | . . . . . . . Crushed . | . . . . . . . Highest Temperature 189 | . . . . 14 . 189 Average Temperature 43 | . . . . 3 . 53 Received Heat Transfer 387 | . . 24 . 66 . 297 Siege Activations . | . . . . . . . Robots Corrupted . | . . . . . . . Combat Hostiles . | . . . . . . . Parts Fried . | . . . . . . . Impact Corruptions . | . . . . . . . Robots Melted . | . . . . . . . Combat Hostiles . | . . . . . . . Parts Melted 1 | . . . . . . 1 Heat Transferred 407 | . . . . . 148 259 Parts Sabotaged . | . . . . . . . Parts Stolen . | . . . . . . . Parts Stripped . | . . . . . . . Power Chain Reactions . | . . . . . . . Missiles Intercepted . | . . . . . . . Alert | -11 -10 -10 -10 -9 -8 -8 ------- Run | Scr Mat Min Exi Min Mat Gar Peak Influence 234 | . 80 50 . 174 81 234 Initial 39 | . . . . . 14 39 Average 80 | . 41 34 . 87 30 159 Maximum Alert Level 1 | . . . . . . 1 Low Security (%) 91 | 100 100 100 . 100 100 65 Level 1 8 | . . . . . . 34 Level 2 . | . . . . . . . Level 3 . | . . . . . . . Level 4 . | . . . . . . . Level 5 . | . . . . . . . High Security . | . . . . . . . Max Security . | . . . . . . . Squads Dispatched 1 | . . . . . 1 . Investigation 1 | . . . . . 1 . Extermination . | . . . . . . . Reinforcement . | . . . . . . . Assault . | . . . . . . . Garrison . | . . . . . . . Intercept . | . . . . . . . Construction Impeded . | . . . . . . . Haulers Reinforced . | . . . . . . . Stealth | -11 -10 -10 -10 -9 -8 -8 --------- Run | Scr Mat Min Exi Min Mat Gar Distress Signals . | . . . . . . . Communications Jammed . | . . . . . . . Distress Signals . | . . . . . . . Times Spotted 41 | . 6 2 . 10 2 21 Peak Tracking Total 7 | . 3 2 . 3 1 7 Tactical Retreats 4 | . . . . . . 4 Traps | -11 -10 -10 -10 -9 -8 -8 ------- Run | Scr Mat Min Exi Min Mat Gar Traps Triggered 8 | . 3 . . . . 5 Indirectly . | . . . . . . . Trap Hack Attempts . | . . . . . . . Triggered . | . . . . . . . Disarmed . | . . . . . . . Reprogrammed . | . . . . . . . Reused 1 | . . . . . . 1 Traps Extracted . | . . . . . . . Installed 3 | . . . . 2 . 1 Triggered 1 | . . . . . . 1 Machines | -11 -10 -10 -10 -9 -8 -8 ---------- Run | Scr Mat Min Exi Min Mat Gar Machines Disabled 1 | . . . . . . 1 Max in Single Turn 1 | . . . . . . 1 Garrison Relay 1 | . . . . . . 1 Machines Sabotaged . | . . . . . . . Garrisons Compromised . | . . . . . . . Overloaded Fab Kills . | . . . . . . . Fab Network Shutdowns . | . . . . . . . Hacking | -11 -10 -10 -10 -9 -8 -8 --------- Run | Scr Mat Min Exi Min Mat Gar Machines Accessed 10 | . 6 . 1 1 2 . Terminals 8 | . 6 . . 1 1 . Fabricators . | . . . . . . . Repair Stations . | . . . . . . . Recycling Units . | . . . . . . . Scanalyzers . | . . . . . . . Garrison Access 1 | . . . . . 1 . Total Hacks 18 | . 9 . 1 2 6 . Successful 14 | . 7 . 1 1 5 . Failed 4 | . 2 . . 1 1 . Catastrophic . | . . . . . . . Database Lockouts . | . . . . . . . Manual 12 | . 6 . 1 2 3 . Terminals 15 | . 9 . . 2 4 . Fabricators . | . . . . . . . Repair Stations . | . . . . . . . Recycling Units . | . . . . . . . Scanalyzers . | . . . . . . . Garrison Access 2 | . . . . . 2 . Terminal Hacks 5 | . 1 . 1 1 2 . Prototype ID Bank 1 | . 1 . . . . . Branch Access Points 1 | . . . . . 1 . Locate Traps 1 | . . . . . 1 . Zone Layout 1 | . . . . 1 . . EX-Prototype ID Bank 1 | . . . 1 . . . Fabricator Hacks . | . . . . . . . Repair Station Hacks . | . . . . . . . Recycling Unit Hacks . | . . . . . . . Scanalyzer . | . . . . . . . Garrison Access Hacks 1 | . . . . . 1 . Unlock Access 1 | . . . . . 1 . Unauthorized Hacks 8 | . 6 . . . 2 . Terminals 8 | . 6 . . . 2 . Track 1 | . . . . . 1 . Botnet 6 | . 5 . . . 1 . Detonate 1 | . 1 . . . . . Fabricators . | . . . . . . . Repair Stations . | . . . . . . . Recycling Units . | . . . . . . . Scanalyzers . | . . . . . . . Garrison Access . | . . . . . . . Data Cores Recovered . | . . . . . . . Used . | . . . . . . . Hacking Detections 5 | . 2 . . 1 2 . Full Trace Events 1 | . . . . . 1 . Feedback Events . | . . . . . . . Feedback Blocked . | . . . . . . . Robot Schematics Acquired . | . . . . . . . Robots Built . | . . . . . . . Matter . | . . . . . . . Time . | . . . . . . . Total Robot Build Rating . | . . . . . . . Part Schematics Acquired . | . . . . . . . Parts Built . | . . . . . . . Matter . | . . . . . . . Time . | . . . . . . . Total Part Build Rating . | . . . . . . . Parts Repaired . | . . . . . . . Time . | . . . . . . . Parts Recycled . | . . . . . . . Recycled Matter . | . . . . . . . Retrieved Matter . | . . . . . . . Retrieved Components . | . . . . . . . Parts Scanalyzed . | . . . . . . . Part Schematics Acquired . | . . . . . . . Parts Damaged . | . . . . . . . Bothacking | -11 -10 -10 -10 -9 -8 -8 ------------ Run | Scr Mat Min Exi Min Mat Gar Used RIF Installer 1 | . . . . . . 1 Robots Hacked 8 | . . . . . . 8 Non-combat . | . . . . . . . Combat 8 | . . . . . . 8 Robot Hacks Applied 8 | . . . . . . 8 disable_weapons 5 | . . . . . . 5 reboot_system 1 | . . . . . . 1 formatsys_high 2 | . . . . . . 2 Relay Couplers Released 5 | . . . . . . 5 Machine Destruction 5 | . . . . . . 5 Attached 2 | . . . . . . 2 Robots Rewired 2 | . . . . . . 2 Allies Hacked . | . . . . . . . Hacks Repelled . | . . . . . . . Allies | -11 -10 -10 -10 -9 -8 -8 -------- Run | Scr Mat Min Exi Min Mat Gar Total Allies 3 | . . . . 1 . 2 Largest Group 2 | . . . . 1 . 2 Highest-Rated Group 32 | . . . . 31 . 32 Highest-Rated Ally 31 | . . . . 31 . 16 Total Orders . | . . . . . . . Ally Attacks 17 | . . . . 5 . 12 Total Damage 252 | . . . . 81 . 171 Kills 4 | . . . . 1 . 3 Allies Corrupted . | . . . . . . . Allies Melted . | . . . . . . . Intel | -11 -10 -10 -10 -9 -8 -8 ------- Run | Scr Mat Min Exi Min Mat Gar Robot Analysis Total . | . . . . . . . Derelict Logs Recovered 1 | . . 1 . . . . Drone Launches . | . . . . . . . Drone Recoveries . | . . . . . . . Exploration | -11 -10 -10 -10 -9 -8 -8 ------------- Run | Scr Mat Min Exi Min Mat Gar Turns Passed 2349 | 51 412 344 333 643 93 473 Spaces Moved 1745 | 30 307 218 278 601 60 251 Core 11 | 11 . . . . . . Treads . | . . . . . . . Legs 1734 | 19 307 218 278 601 60 251 Wheels . | . . . . . . . Hover . | . . . . . . . Flight . | . . . . . . . Fastest Speed 50 | 50 120 150 90 90 90 130 Average Speed 114 | 130 125 150 115 90 90 130 Slowest Speed 250 | 250 150 150 150 90 90 130 Overloaded Moves . | . . . . . . . Propulsion Burnouts . | . . . . . . . Robots Hopped . | . . . . . . . Cave-ins Triggered . | . . . . . . . Exploration Rate (%) 47 | 3 56 57 69 98 7 43 Regions Visited 6 Branch Regions 3 Pre-discovered Areas . | . . . . . . . Known Exits Taken 6 | 1 1 1 1 1 1 . Unknown Exits Taken . | . . . . . . . Scrap Searched 2 | . . 1 . 1 . . Spaces Dug 2 | . . . . . 2 . Terrain Destroyed 2 | . . . . . 2 . Melee 2 | . . . . . 2 . Projectile . | . . . . . . . AOE . | . . . . . . . Terrain Rammed . | . . . . . . . Walls Destroyed . | . . . . . . . Machines Disabled . | . . . . . . . Actions | -11 -10 -10 -10 -9 -8 -8 --------- Run | Scr Mat Min Exi Min Mat Gar Total 1972 | 38 332 226 287 662 86 341 Wait 64 | 2 15 . 3 25 18 1 Move 1740 | 29 306 217 277 600 60 251 Hop . | . . . . . . . Pick Up 19 | . 5 3 . 6 . 5 Fast Attach 15 | 6 5 2 . 1 . 1 Attach 7 | . . . 1 . . 6 Detach 1 | . . . 1 . . . Swap 11 | 1 1 . 5 1 2 1 Drop 8 | . . . . 6 . 2 Fire 61 | . . 4 . 21 4 32 Melee 20 | . . . . . 2 18 Ram . | . . . . . . . Kick . | . . . . . . . Crush . | . . . . . . . Escape Stasis 23 | . . . . . . 23 Rewire . | . . . . . . . Trap 3 | . . . . 2 . 1 Miscellaneous . | . . . . . . . Route ------- -11/Scrapyard -10/Materials (discovered 3 exits: *Mat / *Min x2) -10/Mines (discovered 3 exits: *Mat x2 / *Exi) -10/Exiles (discovered 2 exits: *Min x2) -9/Mines (discovered 2 exits: *Mat x2) -8/Materials -8/Garrison (discovered 1 exit: *Mat) History --------- Turn | Location | Event 9 | -11/Scrapyard | Identified exit to Materials 9 | -11/Scrapyard | Discovered exit to Materials (range 16) 52 | -11/Scrapyard | Entered Materials 52 | -10/Materials | Evolved 1 slot: Utility x1 60 | -10/Materials | Identified exit to Mines 60 | -10/Materials | Discovered exit to Mines (range 15) 116 | -10/Materials | Discovered exit to Mines (range 6) 300 | -10/Materials | Build established: Hacker-Mutant 334 | -10/Materials | Identified exit to Materials 334 | -10/Materials | Discovered exit to Materials (range 3) 464 | -10/Materials | Entered Mines 537 | -10/Mines | Met a Derelict bent on vengeance 551 | -10/Mines | Discovered exit to Materials (range 5) 717 | -10/Mines | Learned Materials emergency access door positions 766 | -10/Mines | Discovered exit to Materials (range 8) 785 | -10/Mines | Received a Rocket Launcher from a helpful Derelict 800 | -10/Mines | Deemed a non-threat by the Exiles lab entrance 802 | -10/Mines | Identified exit to Exiles 802 | -10/Mines | Discovered exit to Exiles (range 5) 808 | -10/Mines | Entered Exiles 832 | -10/Exiles | Identified exit to Mines 832 | -10/Exiles | Discovered exit to Mines (range 15) 846 | -10/Exiles | Met 8R-AWN 868 | -10/Exiles | Met EX-HEX 913 | -10/Exiles | Met EX-BIN 931 | -10/Exiles | Aligned with FarCom system 933 | -10/Exiles | Given EX-Vault access code 970 | -10/Exiles | Opened EX-Vault 984 | -10/Exiles | Found Potential Leg 987 | -10/Exiles | Found Potential Leg 1011 | -10/Exiles | Warned to stay clear of 0b10 Research branches 1033 | -10/Exiles | Met EX-DEC 1132 | -10/Exiles | Discovered exit to Mines (range 10) 1141 | -10/Exiles | Left Exiles lab with Potential Leg 1141 | -10/Exiles | Entered Mines 1184 | -9/Mines | Identified exit to Materials 1184 | -9/Mines | Discovered exit to Materials (range 6) 1208 | -9/Mines | Received a Mining Laser from a helpful Derelict 1443 | -9/Mines | Build established: Hacker-Skirmisher 1454 | -9/Mines | Discovered exit to Materials (range 11) 1455 | -9/Mines | A weapon hastily lodged in a ceiling crevice suddenly fell to the ground 1543 | -9/Mines | Found a hidden stash of uninstalled traps 1676 | -9/Mines | Joined a pair of Derelicts in attacking an 0b10 outpost 1784 | -9/Mines | Entered Materials 1784 | -8/Materials | Evolved 4 slots: Utility x4 1877 | -8/Materials | Identified exit to Garrison 1877 | -8/Materials | Entered Garrison 1887 | -8/Garrison | Installed Relay Interface Framework 1926 | -8/Garrison | Triggered checkpoint 1938 | -8/Garrison | Build established: Hacker-Mutant 1961 | -8/Garrison | Garrison Relay disabled 2022 | -8/Garrison | Triggered checkpoint 2050 | -8/Garrison | Triggered checkpoint 2072 | -8/Garrison | Triggered checkpoint 2279 | -8/Garrison | Identified exit to Materials 2279 | -8/Garrison | Discovered exit to Materials (range 12) 2350 | -8/Garrison | Self-destructed Last Messages --------------- 02252_ Attempting to rewire N-00 Fly. 02254_ Sneak attack on N-00 Fly. 02254_ Attempting to rewire N-00 Fly. 02256_ Sneak attack on N-00 Fly. 02256_ N-00 Fly rewired. 02257_ >> Lost connection to N-00 Fly. 02279_ EXIT=FOUND: MATERIALS 02284_ Sneak attack on D-53 Grenadier. 02284_ D-53 Grenadier system offline. 02286_ Sneak attack on D-53 Grenadier. 02286_ D-53 Grenadier system offline. 02288_ Sneak attack on D-53 Grenadier. 02288_ D-53 Grenadier system offline. 02290_ Sneak attack on D-53 Grenadier. 02290_ D-53 Grenadier system offline. 02346_ H-55 Commando springs to life. 02347_ Penetrated by Slug. 02348_ Jacked H-55 Commando... 02349_ Penetrated by Slug. 02349_ Lgt. Armor Plating destroyed. Map ----- +----------------------------------------------------+ | ?????????????????????????# #???# ## #????????? | | ?????????????????????????# #???#??# ###????????? | | ?????????????????????????# #??????# #??????????? | | ?????????????????????????# #??????# #??????????? | | ?????????????????????????# #??????# #??????????? | | ?????????????????????????# ######## #??????????? | | ?????????????????????????# #??????????? | | ?????????????????????????# #????? | | ?????????????????????????# ######### #######????? | | ?????????????????????????# #???????# #??????????? | | ?????????????????????????#g#???????# #??????????? | | ?????????????????????????# #???????# #??????????? | | ?????????????????????????# #???????# #??????????? | | ?????????????????????????# #????#### #??????????? | | ?????????Y?????????Y?????# #????#!!# #??????????? | | ?????????????????????????# #????# #??????????? | | ?????????????????????????# #????#!!# #??????????? | | ?????????????????????????# #????#### #?#######??? | | ?????????????????????????# #???????# ### #### | | ?????????????????????????# #???????# | | ?????????????????????????# #???????# | | ?????????????????????????# #???????#+########### < | | ?????????????????????????# ######### #?????????# | | ?????????????????????????# ; #?????????### | | ???????????????????????### ###########???????????? | | ???????????????????????#h@ #???????????????????? | | ???????????????????????#h #???????????????????? | | ???????????????????????####nn#???????????????????? | | ??????????????????????????#nn#???????????????????? | | ??????????????????????????####???????????????????? | | ?????????????????????????????????????????????????? | | ?????????????????????????????????????????????????? | | ?????????????????????????????????????????????????? | | ?????????????????????????????????????????????????? | | ?????????????????????????????????????????????????? | | ?????????????????????????????????????????????????? | | ?????????????????????????????????????????????????? | | ?????????????????????????????????????????????????? | | ?????????????????????????????????????????????????? | | ?????????????????????????????????????????????????? | | ?????????????????????????????????????????????????? | | | | | | | | | | | | | | | | | | | +----------------------------------------------------+ Best States ------------- Heat Dissipation 31 Energy Generation 14 Energy Capacity 250 Matter Stores 300 Matter Capacity 300 Sight Range 16 Terrain Scan Range 14 Terrain Scan Density 10 Armor Coverage 300 Resistance: KI 35 Resistance: TH 35 Resistance: EX 35 Resistance: EM 35 Resistance: I 35 Resistance: S 35 Resistance: P 35 Core Shielding 20 Evasion (%) 42 Offensive Hacking 20 Relay Coupler Types 46 Relay Coupler Value 1 Item Schematics ----------------- None Robot Schematics ------------------ None Fabricated ------------ Nothing Alien Tech Used ----------------- None Achievements -------------- None Challenges ------------ None Game ------ Seed RiotActuatorBroadsword Manual? 0 Play Time 00:22:36 Cumulative 75.5 hours Start 2020.09.27 @ 10:57:59 End 2020.09.27 @ 11:18:42 Sessions 1 Manual Loads 0 Difficulty Explorer Special Mode None Game No. 130 Rogue 0 Adventurer 0 Explorer 130 Win Type - Total 0 Types 0/0/0/0/0/0/0/0/0 Lore% 50 Gallery% 62 Achievement% 48 Wizard Run 0 Options --------- ASCII 0 Keyboard 0 Movement Numpad Keybinds 0 Fullscreen 1 Font 36/Smallcaps Map View 76x50 Tactical HUD 1 Map Filters NONE Filters NONE Steam 1 RUN: 28b19ad3-ffb9-4e96-88bd-5af421e0ec8f